[Event "10th Iberoamericano-ch 2024"]
[Site "Linares"]
[Date "2024.09.28"]
[Round "6.1"]
[White "Garcia Ramos, Daniel"]
[Black "Quesada Perez, Luis Ernesto"]
[Result "0-1"]
[Annotator "TA"]
[ECO "C50"]
[WhiteElo "2415"]
[BlackElo "2578"]
[PlyCount "112"]
[EventDate "2024.09.25"]
[EventType "swiss"]
[EventCountry "ESP"]
[SourceTitle "playchess.com"]
[Source "ChessBase"]
[SourceQuality "1"]
[TimeControl "5400+30"]

{[%evp 9,112,8,16,13,15,14,14,8,15,8,5,0,0,0,0,0,0,0,0,0,0,-18,0,-8,0,0,6,0,0,-37,-49,-44,-55,-46,-35,-39,0,0,0,-58,-39,-45,-29,-37,0,-87,-77,-139,-135,-133,-120,-202,-199,-208,-163,-204,-209,-208,-210,-389,-388,-434,-439,-435,-418,-429,-437,-426,-308,-332,-278,-304,-323,-314,-317,-295,-298,-295,-289,-376,-384,-366,-363,-496,-472,-535,-519,-525,-541,-564,-535,-537,-549,-572,-569,-633,-603,-933,-927,-782,0,-952,-945,-1072,-1062]} 1. e4 {[%emt 0:03:23]} e5 {[%emt 0:00:05]} 2. Nf3 {[%emt 0:00:20]} Nc6 {[%emt 0:00:07]} 3. Bc4 {[%emt 0:00:09]} Nf6 {[%emt 0:00:14]} 4. d3 {[%emt 0:00:14]} Bc5 {[%emt 0:00:18]} 5. a4 {[%emt 0:00:28]} d6 {[%emt 0:00:26]} 6. a5 {[%emt 0:00:16]} a6 {[%emt 0:00:07]} 7. c3 {[%emt 0:00:55]} Ba7 {[%emt 0:04:11]} 8. O-O {[%emt 0:00:44] The position is equal.} O-O {[%emt 0:00:38]} 9. Be3 {[%emt 0:01:26]} Bxe3 {[%emt 0:00:26]} 10. fxe3 {[%emt 0:00:07]} Ne7 {[%emt 0:00:10]} 11. Nbd2 {[%emt 0:02:00]} Ng6 {[%emt 0:04:58]} 12. d4 {[%emt 0:19:21]} Qe7 {[%emt 0:13:09]} 13. Qb3 {[%emt 0:11:42]} Bd7 {[%emt 0:02:00]} 14. Rae1 {[%emt 0:12:43]} ({Of course not} 14. Qxb7 Rfb8 15. Qxc7 Ne8 (15... Rxb2 16. Bb3 $14) 16. Bxf7+ Qxf7 $17) 14... h6 {[%emt 0:07:03]} 15. h3 {[%emt 0:01:52]} (15. Qxb7 $2 {perishes.} Rfb8 16. Qxc7 Ne8 (16... Rxb2 17. Bb3 $14) 17. Bxf7+ Qxf7 $19) 15... Rab8 {[%emt 0:01:54]} 16. Qc2 {[%emt 0:02:41]} Rbe8 {[%emt 0:08:57]} 17. Rf2 {[%emt 0:06:49]} Kh8 {[%emt 0:12:37]} 18. Nf1 {[%emt 0:17:33]} c6 {[%emt 0:00:19]} 19. Ng3 {[%emt 0:03:40]} d5 {[%emt 0:00:31]} 20. exd5 {[%emt 0:00:10]} cxd5 {[%emt 0:00:11]} 21. Ba2 {[%emt 0:01:01]} e4 {[%emt 0:07:38]} 22. Nd2 {[%emt 0:00:05]} Qd6 {[%emt 0:00:54]} 23. Ndf1 {[%emt 0:03:43]} (23. Ne2 $5) 23... Ne7 {[%emt 0:00:37]} 24. Qb3 {[%emt 0:02:37]} (24. c4 $11) 24... Rc8 {[%emt 0:14:48]} 25. Ne2 {[%emt 0:01:46]} Bb5 {[%emt 0:00:51]} 26. Nfg3 {[%emt 0:00:47]} Nfg8 {[%emt 0:03:17]} 27. Qd1 {[%emt 0:02:43]} (27. Qb4 $11 Qxb4 28. cxb4) 27... f5 $36 {[%emt 0:00:32][%mdl 2048] Black is in control. White is now going downhill.} 28. Ref1 {[%emt 0:00:42]} (28. Qd2 $142) 28... g6 {[%emt 0:00:23]} 29. Bb3 {[%emt 0:02:40]} h5 {[%emt 0:06:19] Black is much more active.} 30. Rf4 {[%emt 0:01:32]} (30. Re1 $17) 30... Nh6 $19 {[%emt 0:00:38]} 31. Ba4 {[%emt 0:01:13]} Bxa4 {[%emt 0:00:41]} 32. Qxa4 {[%emt 0:00:05] [#]} g5 $1 {[%emt 0:00:08]} 33. R4f2 {[%emt 0:00:28]} h4 {[%emt 0:00:14]} 34. Nh1 {[%emt 0:00:43] [#]} (34. Nh5 {only move.}) 34... f4 $1 {[%emt 0:00:36][%mdl 512]} 35. Qa3 {[%emt 0:00:49]} (35. exf4 g4) 35... Qxa3 {[%emt 0:00:44]} 36. bxa3 {[%emt 0:00:01]} Nef5 {[%emt 0:00:07]} 37. exf4 {[%emt 0:00:21]} g4 {[%emt 0:00:22]} 38. Rb1 {[%emt 0:00:28][%cal Bf1b1,Bb1b6,Bb6e6,Be6e5][%mdl 32]} g3 {[%emt 0:00:29]} 39. Rff1 {[%emt 0:00:12]} Rc7 {[%emt 0:02:29]} 40. Rb6 {[%emt 0:00:06]} Kg7 {[%emt 0:00:35]} 41. Rfb1 {[%emt 0:00:05]} Rff7 {[%emt 0:00:07]} 42. Re6 {[%emt 0:01:44]} Rf6 {[%emt 0:01:17]} 43. Re5 {[%emt 0:00:27] [#]} Rd7 {[%emt 0:00:22]} 44. Re8 {[%emt 0:00:53]} Nf7 {[%emt 0:00:31]} 45. Rc8 {[%emt 0:00:16]} N7d6 {[%emt 0:01:08]} 46. Rb8 {[%emt 0:00:49]} Rf8 {[%emt 0:00:19] Against a4} 47. Rxf8 {[%emt 0:00:06]} Kxf8 {[%emt 0:00:05]} 48. Rb6 {[%emt 0:00:18]} Kf7 {[%emt 0:00:09]} 49. a4 {[%emt 0:00:36]} Nc4 {[%emt 0:01:17]} 50. Rb1 {[%emt 0:00:28]} Rc7 {[%emt 0:00:39]} 51. Rb4 {[%emt 0:01:09]} Nxa5 {[%emt 0:00:30] Threatens to win with ...Rc4.} 52. Kf1 {[%emt 0:00:11]} Nc4 {[%emt 0:00:08][%cal Ob7b5] aiming for ...b5!} 53. Ke1 {[%emt 0:00:49]} Nce3 {[%emt 0:00:55] ...Nc2+ is the strong threat.} 54. Kd2 {[%emt 0:00:19]} Nc4+ $2 {[%emt 0:00:50]} (54... Nxg2 $19 55. Rb3 Nge3 56. Nhxg3 hxg3 (56... Nc4+ $2 57. Ke1 $19)) 55. Kc1 $2 {[%emt 0:00:17][%mdl 8192]} (55. Ke1 $11 Nfe3 (55... Nce3 $2 56. Kd2 $19) 56. Rb3) 55... Ke6 {[%emt 0:00:11]} 56. Rb3 {[%emt 0:00:42]} Rg7 {[%emt 0:00:49] Weighted Error Value: White=0.45/Black=0.19 (very precise) .  Mistake:       	White=5     	---        Inaccurate:     	White=4     	Black=2      OK:         	White=13    	Black=23     Best:        	White=1     	Black=3} 0-1

[Event "10th Iberoamericano-ch 2024"]
[Site "Linares"]
[Date "2024.09.28"]
[Round "6.2"]
[White "Pichot, Alan"]
[Black "Flores Quillas, Diego Saul Rodri"]
[Result "1/2-1/2"]
[Annotator "TA"]
[ECO "C67"]
[WhiteElo "2628"]
[BlackElo "2451"]
[PlyCount "49"]
[EventDate "2024.09.25"]
[EventType "swiss"]
[EventCountry "ESP"]
[SourceTitle "playchess.com"]
[Source "ChessBase"]
[SourceQuality "1"]
[TimeControl "5400+30"]

{[%evp 22,49,-9,-8,15,-2,0,0,0,0,9,16,24,0,0,-33,-21,-20,-13,-30,-10,-22,-17,-23,-27,-28,0,-14,-14,-29]} 1. e4 {[%emt 0:00:03]} e5 {[%emt 0:10:24]} 2. Nf3 {[%emt 0:00:05]} Nc6 {[%emt 0:00:04]} 3. Bb5 {[%emt 0:00:45]} Nf6 {[%emt 0:00:05]} 4. O-O {[%emt 0:03:15]} Nxe4 {[%emt 0:00:14]} 5. d4 {[%emt 0:00:06]} Nd6 {[%emt 0:00:05]} 6. Bxc6 {[%emt 0:00:07]} dxc6 {[%emt 0:00:04]} 7. dxe5 {[%emt 0:00:09]} Nf5 {[%emt 0:00:03]} 8. Qxd8+ {[%emt 0:00:08]} Kxd8 {[%emt 0:00:04]} 9. Nc3 {[%emt 0:03:04]} Bd7 {[%emt 0:00:07]} 10. h3 {[%emt 0:04:37]} h6 {[%emt 0:03:09][%cal Bh7h6,Bh6h5,Bh5h4][%mdl 32]} 11. b3 {[%emt 0:03:32]} Kc8 {[%emt 0:04:39]} 12. Bb2 {[%emt 0:00:56]} Ne7 {[%emt 0:00:06]} 13. Nd4 {[%emt 0:13:51][%cal Oe5e6,Bf3d4,Bd4e2,Be2g3,Bg3e4,Be4g5][%mdl 32]} c5 {[%emt 0:02:40]} 14. Nde2 {[%emt 0:03:31]} Bf5 {[%emt 0:35:23]} 15. Rac1 {[%emt 0:05:36]} h5 {[%emt 0:00:58]} 16. Ng3 {[%emt 0:05:14]} Bg6 {[%emt 0:00:24]} 17. Rfe1 {[%emt 0:00:21]} h4 {[%emt 0:06:02]} 18. Nge4 {[%emt 0:18:34]} b6 {[%emt 0:00:27]} 19. Ng5 {[%emt 0:13:16]} Rh5 {[%emt 0:03:12]} 20. Nce4 {[%emt 0:00:40]} Nc6 {[%emt 0:08:18]} 21. f4 {[%emt 0:00:34]} Be7 {[%emt 0:01:44]} 22. Rcd1 {[%emt 0:05:21]} Kb7 {[%emt 0:04:35]} 23. c4 {[%emt 0:01:15]} Rd8 {[%emt 0:01:55]} 24. Rxd8 {[%emt 0:01:47]} Nxd8 {[%emt 0:00:10]} 25. Kf2 {[%emt 0:04:02] Not much happened in this game.   Weighted Error Value: White=0.09 (flawless) /Black=0.07 (flawless) .  Inaccurate:     	White=1     	Black=1      OK:         	White=3     	Black=5      Best:        	---       	Black=1} 1/2-1/2

[Event "10th Iberoamericano-ch 2024"]
[Site "Linares"]
[Date "2024.09.28"]
[Round "6.4"]
[White "Santos Flores, Alberto"]
[Black "Avila Pavas, Santiago"]
[Result "0-1"]
[Annotator "TA"]
[ECO "B03"]
[WhiteElo "2168"]
[BlackElo "2485"]
[PlyCount "100"]
[EventDate "2024.09.25"]
[EventType "swiss"]
[EventCountry "ESP"]
[SourceTitle "playchess.com"]
[Source "ChessBase"]
[SourceQuality "1"]
[TimeControl "5400+30"]

{[%evp 12,100,0,0,15,-56,-54,-75,-76,-133,-95,-102,-64,-72,-76,-55,-53,-58,-54,-130,-121,-125,-128,-160,-151,-164,-154,-144,-160,-155,-155,-162,-163,-196,-202,-214,-139,-141,-135,-131,-143,-146,-118,-148,-148,-148,-148,-148,-148,-137,-114,-136,-141,-144,-147,-148,-148,-148,-134,-185,-183,-190,-190,-189,-189,-488,-483,-466,-466,-625,-373,-2606,-1695,-29964,-29966,-29964,-29967,-2195,-29968,-29970,-29970,-12843,-9588,-29981,-29982,-29982,-29983,-29983,-29984,-29984,-29984]} 1. e4 {[%emt 0:00:04][%cal Be2e4,Be4e5][%mdl 32]} Nf6 {[%emt 0:02:30]} 2. e5 {[%emt 0:01:06]} Nd5 {[%emt 0:00:13]} 3. d4 {[%emt 0:00:24]} d6 {[%emt 0:00:11]} 4. Bc4 {[%emt 0:03:01]} Nb6 {[%emt 0:01:06]} 5. Bb3 {[%emt 0:00:05]} dxe5 {[%emt 0:00:21]} 6. Qf3 {[%emt 0:00:07]} e6 {[%emt 0:00:18]} 7. dxe5 {[%emt 0:00:04]} a5 {[%emt 0:00:19] And now ...a4 would win.} 8. c3 {[%emt 0:07:33]} ({White should try} 8. a4 $1 $11) 8... Bd7 $1 $15 {[%emt 0:00:38]} 9. Nd2 {[%emt 0:11:59]} Bb5 {[%emt 0:07:48] Against Nc4. Black is better.} 10. c4 {[%emt 0:16:28]} (10. a4 $142 Ba6 11. Qg3) 10... Bc6 {[%emt 0:28:46]} 11. Qg3 {[%emt 0:00:51]} a4 {[%emt 0:00:41] Black is more active.} 12. Bc2 {[%emt 0:00:59]} Bb4 {[%emt 0:00:24]} 13. Qxg7 {[%emt 0:15:19]} Rf8 {[%emt 0:00:07]} 14. a3 {[%emt 0:00:03]} (14. Qxh7 $2 Nxc4 (14... Bxg2 $2 15. a3 $19) 15. Qd3 Qxd3 (15... Bxg2 16. Qxc4 Bxd2+ 17. Bxd2 $17) (15... Nxe5 16. Qxd8+ Kxd8 17. Kf1 $17) 16. Bxd3 Bxg2 (16... Nxe5 $2 17. Bf1 $19) 17. Bxc4 Rg8 $19 (17... Bxh1 $2 18. Kf1 $19)) 14... Ba5 $36 {[%emt 0:00:50][%mdl 2048] White is under pressure.} 15. Ne2 {[%emt 0:09:02]} (15. Qxh7 $2 {loses.} Nxc4 16. Qh6 Bxg2 (16... Nxe5 $2 17. Qh3 $19) 17. Bxa4+ Nc6 $19 (17... Nd7 $2 18. b4 $19)) (15. Ke2 $1 $15) 15... Nxc4 $17 {[%emt 0:33:07][%cal Ra5d2]} 16. Nc3 {[%emt 0:00:54]} Qd4 {[%emt 0:00:05][%csl LRc3,LRe5]} 17. O-O {[%emt 0:09:13]} Nxd2 {[%emt 0:03:25]} 18. Rd1 {[%emt 0:03:33]} Bxc3 {[%emt 0:00:05]} 19. bxc3 {[%emt 0:00:04]} Qxc3 {[%emt 0:00:08]} 20. Bxd2 {[%emt 0:00:54]} Qxc2 {[%emt 0:00:09]} 21. Bb4 {[%emt 0:02:43][%csl Gb4][%cal Rg7f8] [#]} Nd7 {[%emt 0:00:03]} 22. Qg5 {[%emt 0:01:44][%csl Gb4][%cal Rg5e7] [#]} (22. Rxd7 Kxd7) 22... Nc5 $1 {[%emt 0:01:34][%cal Oc2f2] Hoping for ...Qxf2+!} (22... f6 23. Qg7 O-O-O 24. Bxf8 fxe5 (24... Rxf8 $2 {too greedy.} 25. Rxd7 fxe5 26. Rxc7+ Kb8 27. Rxb7+ Bxb7 28. Qxf8+ Ka7 29. Qb4 $18) 25. Bb4 $16) 23. Rac1 {[%emt 0:03:36]} Qg6 {[%emt 0:00:06]} 24. Qxg6 {[%emt 0:00:14]} fxg6 {[%emt 0:00:11]} 25. Bxc5 {[%emt 0:01:00]} Rf5 {[%emt 0:01:07]} 26. Be3 {[%emt 0:00:27]} Rd8 {[%emt 0:00:03]} 27. f4 {[%emt 0:01:07]} Rf7 {[%emt 0:01:01]} 28. Rxd8+ {[%emt 0:01:14]} Kxd8 {[%emt 0:00:06][%mdl 4096] Endgame. KRB-KRB} 29. Kf2 {[%emt 0:02:33]} Rd7 {[%emt 0:01:33]} 30. Rc2 {[%emt 0:01:17]} Bb5 {[%emt 0:10:28]} 31. g4 {[%emt 0:01:00]} Rd3 {[%emt 0:05:47]} 32. Rd2 {[%emt 0:00:18]} Rxd2+ {[%emt 0:00:04]} 33. Bxd2 {[%emt 0:00:01] KB-KB} Kd7 {[%emt 0:00:08]} 34. Ke3 {[%emt 0:00:25]} c5 {[%emt 0:00:12]} 35. Ke4 {[%emt 0:02:29]} (35. Ba5 $17) 35... Kc6 $19 {[%emt 0:00:03]} 36. h4 {[%emt 0:02:41]} h5 {[%emt 0:00:59]} 37. gxh5 {[%emt 0:00:15]} gxh5 {[%emt 0:00:01]} 38. f5 $2 {[%emt 0:00:21]} (38. Ke3 {was worth a try.}) 38... exf5+ {[%emt 0:00:04]} 39. Kxf5 {[%emt 0:00:01]} Kd5 {[%emt 0:00:07]} 40. e6 {[%emt 0:01:25]} Bc6 {[%emt 0:00:52]} 41. e7 $2 {[%emt 0:00:30]} (41. Ba5 b5 42. Kf4) 41... b5 {[%emt 0:00:28] ( -> ...Kc4)} 42. Kg6 {[%emt 0:00:24] [#]} Be8+ $1 {[%emt 0:01:15]} 43. Kg7 {[%emt 0:01:25]} Kc4 {[%emt 0:00:05]} 44. Kf8 {[%emt 0:00:04]} Bd7 {[%emt 0:00:11]} 45. e8=Q {[%emt 0:00:14]} Bxe8 {[%emt 0:00:04]} 46. Kxe8 {[%emt 0:00:05]} b4 {[%emt 0:00:17]} 47. axb4 {[%emt 0:02:46]} cxb4 {[%emt 0:00:25] Black mates.} 48. Kf7 {[%emt 0:00:07]} a3 {[%emt 0:01:38]} 49. Bc1 {[%emt 0:00:08]} a2 {[%emt 0:00:24]} 50. Bb2 {[%emt 0:00:05]} Kb3 {[%emt 0:00:03] Weighted Error Value: White=0.63/Black=0.12 (very precise) .  Mistake:       	White=6     	---        Inaccurate:     	White=2     	Black=3      OK:         	White=8     	Black=17     Best:        	White=4     	Black=2      Strong:       	---       	Black=2} 0-1

[Event "10th Iberoamericano-ch 2024"]
[Site "Linares"]
[Date "2024.09.28"]
[Round "6.5"]
[White "Fernandez Guillen, Ernesto J."]
[Black "Garrido Outon, Alex"]
[Result "1-0"]
[Annotator "TA"]
[ECO "C50"]
[WhiteElo "2463"]
[BlackElo "2448"]
[PlyCount "66"]
[EventDate "2024.09.25"]
[EventType "swiss"]
[EventCountry "ESP"]
[SourceTitle "playchess.com"]
[Source "ChessBase"]
[SourceQuality "1"]
[TimeControl "5400+30"]

{[%evp 11,66,21,16,25,24,1,8,22,52,43,53,35,38,-42,-37,-17,63,3,10,-25,-16,-26,102,86,92,77,57,0,16,0,132,86,96,94,151,130,235,245,229,225,226,233,231,208,173,168,160,163,277,278,470,343,336,347,414,414,2137]} 1. e4 {[%emt 0:06:43]} e5 {[%emt 0:00:11]} 2. Nf3 {[%emt 0:00:09]} Nc6 {[%emt 0:00:05]} 3. Bc4 {[%emt 0:00:16]} d6 {[%emt 0:00:13]} 4. h3 {[%emt 0:01:01]} Be7 {[%emt 0:01:21]} 5. d4 {[%emt 0:00:48]} Nf6 {[%emt 0:01:25]} 6. Nc3 {[%emt 0:03:49]} O-O {[%emt 0:00:59][%cal Of6e4]} (6... Nxe4 {keeps more tension.} 7. Nxe4 d5 8. Bb5 dxe4 9. Nxe5 Qd6) 7. d5 {[%emt 0:00:32]} Nb8 {[%emt 0:00:15][%cal Bc6b8,Bb8d7,Bd7b6][%mdl 32]} 8. g4 {[%emt 0:02:05][%cal Bg2g4,Bg4g5][%mdl 32]} Nbd7 {[%emt 0:08:53]} 9. Be3 {[%emt 0:05:04] The position is equal.} Nb6 {[%emt 0:10:10]} 10. Bb3 {[%emt 0:25:08]} c6 {[%emt 0:00:27]} 11. g5 {[%emt 0:01:25]} Nfd7 {[%emt 0:01:21]} 12. dxc6 {[%emt 0:04:40]} (12. h4 $14) 12... bxc6 $15 {[%emt 0:00:09]} 13. Rg1 {[%emt 0:00:38]} Ba6 {[%emt 0:08:22]} (13... Kh8 $11) 14. Nd2 {[%emt 0:20:50] White has more active pieces.} (14. Nh4 $14) 14... Nc5 $11 {[%emt 0:03:05]} 15. g6 {[%emt 0:00:57]} (15. Qf3 {simplifies} Nxb3 16. axb3 Bc8 17. Qg3) 15... hxg6 $1 {[%emt 0:09:39]} 16. Rxg6 {[%emt 0:01:17]} (16. Bxc5 $2 dxc5 17. a4 (17. Rxg6 $2 c4 $19) 17... c4 $19) 16... Bf6 {[%emt 0:00:06]} (16... Nxb3 $11 {keeps the balance.} 17. Rxg7+ Kxg7 18. Qg4+ Bg5 19. Bxg5 Bc8) 17. Rg1 $16 {[%emt 0:06:08]} Qe7 {[%emt 0:05:41]} 18. Qf3 {[%emt 0:04:33]} Rfd8 {[%emt 0:00:43]} 19. O-O-O {[%emt 0:00:47][%cal Oh3h4]} Nxb3+ {[%emt 0:01:33]} 20. axb3 {[%emt 0:01:46]} Qe6 {[%emt 0:04:07]} (20... d5 $11 21. exd5 cxd5) 21. Bg5 {[%emt 0:06:19]} (21. Qh5 $142 {Nf3 is the strong threat.} Nd7 22. Nf3) 21... Nd7 {[%emt 0:07:31]} 22. h4 {[%emt 0:01:55]} Bxg5 {[%emt 0:02:54]} (22... Rab8 $142) 23. Rxg5 {[%emt 0:00:04]} f6 {[%emt 0:02:00]} (23... Qf6 $16) 24. Rg3 $18 {[%emt 0:00:25]} Nf8 {[%emt 0:00:05]} 25. Rdg1 {[%emt 0:00:05]} Rd7 {[%emt 0:00:40]} 26. Nd1 {[%emt 0:00:06]} g6 {[%emt 0:01:46]} 27. Ne3 {[%emt 0:00:45] [#] Rxg6+ would now be deadly.} (27. h5 g5 $16) 27... Kh8 {[%emt 0:00:41]} 28. Ng4 {[%emt 0:04:14] Hoping for h5.} Rf7 {[%emt 0:00:09]} 29. Qc3 {[%emt 0:01:31]} d5 {[%emt 0:01:28]} (29... Re8 $142 30. h5 (30. Qxc6 Bb7 $11) 30... g5) 30. Nf3 {[%emt 0:00:32]} Re8 $2 {[%emt 0:01:25] [#]} (30... d4 31. Qd2 Rh7 32. Ngxe5 fxe5) 31. Ngxe5 $1 {[%emt 0:00:39][%mdl 512]} fxe5 {[%emt 0:01:50]} 32. Ng5 $1 {[%emt 0:00:05][%csl LRe6,LRf7]} Qf6 {[%emt 0:00:05]} (32... d4 $2 33. Qa5 (33. Nxf7+ Qxf7 34. Rf3 Qe7 $11) 33... Qf6 34. Nxf7+ (34. Qxa6 Rg7 $18) (34. Rf3 Qxg5+ 35. Rxg5 Rxf3 $18) 34... Qxf7 35. Qxa6 $18) 33. Rf3 {[%emt 0:00:37]} (33. Nxf7+ Qxf7 34. h5 (34. Qxc6 Bb7 $16) 34... Kg7 $18) 33... Qe7 {Weighted Error Value: White=0.24 (precise) /Black=0.39.  Mistake:       	White=3     	Black=8      Inaccurate:     	White=2     	Black=1      OK:         	White=10    	Black=7      Best:        	White=2     	Black=3      Strong:       	---       	Black=1} (33... Qxf3 $142 34. Nxf3 d4) 1-0

[Event "10th Iberoamericano-ch 2024"]
[Site "Linares"]
[Date "2024.09.28"]
[Round "6.6"]
[White "Zambrana, Osvaldo"]
[Black "Vallejo Pons, Francisco"]
[Result "0-1"]
[Annotator "TA"]
[ECO "B90"]
[WhiteElo "2405"]
[BlackElo "2657"]
[PlyCount "82"]
[EventDate "2024.09.25"]
[EventType "swiss"]
[EventCountry "ESP"]
[SourceTitle "playchess.com"]
[Source "ChessBase"]
[SourceQuality "1"]
[TimeControl "5400+30"]

{[%evp 11,82,-6,-6,-6,-10,0,0,-51,-36,-21,-19,-31,0,0,2,-9,0,-47,0,-75,-70,-95,-68,-60,-89,-77,-74,-78,0,0,-16,-63,-40,-153,-156,-150,-35,-85,18,-53,-57,-72,-46,-50,-39,-46,-5,-9,0,0,0,-22,-13,-75,-86,-74,-71,-83,-35,-27,0,-196,-185,-209,-202,-669,-363,-632,-360,-338,-313,-665,-433]} 1. e4 {[%emt 0:00:07]} c5 {[%emt 0:00:35]} 2. Nf3 {[%emt 0:00:16]} d6 {[%emt 0:00:07]} 3. d4 {[%emt 0:00:33]} cxd4 {[%emt 0:00:06]} 4. Nxd4 {[%emt 0:00:05]} Nf6 {[%emt 0:00:05]} 5. Nc3 {[%emt 0:00:07]} a6 {[%emt 0:00:21]} 6. Rg1 {[%emt 0:00:42]} b5 {[%emt 0:05:48]} 7. g4 {[%emt 0:01:51]} Bb7 {[%emt 0:01:56][%cal Ob5b4]} 8. Bg2 {[%emt 0:07:45]} e6 {[%emt 0:03:16]} 9. Qe2 {[%emt 0:10:13]} (9. g5 $11 Nfd7 10. a3) 9... Nfd7 {[%emt 0:03:31]} 10. Be3 {[%emt 0:07:41]} Nc6 {[%emt 0:12:38][%cal Bb8c6,Bc6e5,Be5c4][%mdl 32]} 11. O-O-O {[%emt 0:04:31]} Be7 {[%emt 0:04:44]} (11... b4 $5 12. Nd5 Nxd4 (12... exd5 13. exd5 Nxd4 14. Bxd4+ Be7 15. Bxg7 $11) 13. Bxd4 exd5 14. exd5+ Be7 (14... Qe7 15. Qd2 $14) 15. Bxg7 Rg8 $17) 12. a3 {[%emt 0:14:42]} Nce5 {[%emt 0:05:26]} 13. f4 {[%emt 0:08:37]} Nc4 {[%emt 0:00:21]} 14. Bf2 {[%emt 0:00:05]} (14. Bh3 $11) 14... O-O {[%emt 0:10:56]} (14... Rc8 $1 $15) 15. h4 {[%emt 0:13:26]} Rc8 $1 $17 {[%emt 0:05:48][%cal Oc4a3]} 16. Rd3 {[%emt 0:00:12]} Re8 {[%emt 0:07:38][%cal Oe6e5]} ({Don't play} 16... Bxh4 $6 17. Bxh4 Qxh4 18. Rh1 $15) 17. g5 {[%emt 0:00:33]} e5 {[%emt 0:04:03]} 18. fxe5 {[%emt 0:02:06]} Ndxe5 {[%emt 0:00:07]} 19. Rg3 {[%emt 0:00:15]} g6 {[%emt 0:08:33]} (19... d5 $17) 20. Kb1 {[%emt 0:06:44]} Bf8 {[%emt 0:00:58][%cal Od6d5]} 21. Qd1 {[%emt 0:03:05]} (21. Bh3 $11 {deserves consideration.}) 21... Bg7 $15 {[%emt 0:01:22][%cal Ob5b4] Black is more active.} 22. Nb3 {[%emt 0:07:03]} (22. Qc1 $15) 22... a5 $17 {[%emt 0:08:48] Hoping for ...b4.} 23. Bd4 {[%emt 0:00:30][%cal Oh4h5]} Bc6 {[%emt 0:03:38]} (23... b4 $17 24. axb4 axb4) 24. Bf1 {[%emt 0:04:21] [#]} (24. h5 $15) 24... b4 {[%emt 0:00:48]} ({Black should try} 24... d5 $1 $17 {[%cal Rd5e4]} 25. exd5 Bxd5) 25. axb4 {[%emt 0:01:42]} (25. Bxc4 $11 bxc3 (25... Nxc4 26. Bxg7 Kxg7 27. Qd4+ Kg8 28. Qxc4 $11) 26. Rxc3) 25... axb4 $15 {[%emt 0:00:09]} 26. Bxc4 $1 {[%emt 0:04:52]} bxc3 {[%emt 0:00:41]} 27. Rxc3 {[%emt 0:00:02]} Bxe4 {[%emt 0:00:40]} 28. Bb5 {[%emt 0:00:02] Rxc8 would now be deadly.} Rf8 {[%emt 0:03:24]} 29. Re1 $1 {[%emt 0:01:31]} Rb8 {[%emt 0:01:00]} 30. Rxe4 {[%emt 0:00:10]} Rxb5 {[%emt 0:00:01]} 31. Qf1 {[%emt 0:00:30]} Qa8 {[%emt 0:02:47] aiming for ...Rxb3.} 32. Re1 {[%emt 0:00:11]} (32. Rf4 $11 Qd5 33. Qe2) 32... Qa4 $17 {[%emt 0:01:01][%cal Ob5b3]} 33. Rc7 {[%emt 0:01:59]} Rxb3 {[%emt 0:01:42]} 34. Bxe5 {[%emt 0:00:01] [#]} Bxe5 {[%emt 0:00:43]} (34... Ra3 $1 $17 {[%cal Ra3a1] ( -> ...Ra1#)} 35. bxa3 (35. Bxd6 $2 Ra1#) 35... Qxa3) 35. cxb3 $15 {[%emt 0:00:01]} Qxb3 {[%emt 0:00:26]} (35... Qxh4 $5 36. Re2 Qg3 $17 (36... Qxg5 37. Rf2 $11)) 36. Qf2 {[%emt 0:00:03]} (36. Rc2 $1 $11 {and White is okay.}) 36... Ra8 $40 {[%emt 0:01:18][%mdl 128] And now ...Qa2+ would win. White is in trouble.} 37. Rxe5 {[%emt 0:00:51]} dxe5 {[%emt 0:00:18]} 38. Qc2 $2 {[%emt 0:00:08]} (38. Qc5) 38... Qa2+ {[%emt 0:01:40]} 39. Kc1 {[%emt 0:00:02]} Qa1+ {[%emt 0:00:44]} 40. Qb1 {[%emt 0:01:57]} Qa5 {[%emt 0:01:01]} 41. Rc3 {[%emt 0:00:02]} (41. Rc4) 41... Qb4 {[%emt 0:00:13] Weighted Error Value: White=0.57/Black=0.25 (precise) .  Loses game:     	White=1     	---        Mistake:       	White=10    	Black=5      Inaccurate:     	White=1     	Black=4      OK:         	White=9     	Black=11     Best:        	White=4     	Black=3      Strong:       	White=2     	Black=1} 0-1